[Event "Titled Tuesday Blitz August 1 Late 2023"]
[White "WindWhistler11"]
[Black "Kochiev, Ivan"]
[BlackFideId "2917890"]
[WhiteElo "2434"]
[BlackElo "2549"]
[Result "0-1"]
[Round "5"]
[TimeControl "180+1"]
[Date "2023.08.01"]
[WhiteClock "0:00:13"]
[BlackClock "0:00:06"]
[Board "80"]

1. Nf3 {[%clk 0:03:00]}  Nf6 {[%clk 0:02:52]} 2. g3 {[%clk 0:03:00]}  b5 {[%clk 0:02:51]} 3. a4 {[%clk 0:02:58]}  b4 {[%clk 0:02:51]} 4. c3 {[%clk 0:02:58]}  c5 {[%clk 0:02:46]} 5. Bg2 {[%clk 0:02:56]}  Bb7 {[%clk 0:02:44]} 6. d4 {[%clk 0:02:42]}  e6 {[%clk 0:02:41]} 7. Nbd2 {[%clk 0:02:31]}  d5 {[%clk 0:02:40]} 8. dxc5 {[%clk 0:02:27]}  Bxc5 {[%clk 0:02:35]} 9. Nb3 {[%clk 0:02:27]}  Be7 {[%clk 0:02:35]} 10. O-O {[%clk 0:02:16]}  O-O {[%clk 0:02:35]} 11. cxb4 {[%clk 0:02:03]}  Bxb4 {[%clk 0:02:34]} 12. Be3 {[%clk 0:01:54]}  Ne4 {[%clk 0:02:31]} 13. Ne5 {[%clk 0:01:42]}  Nd7 {[%clk 0:02:25]} 14. Nd3 {[%clk 0:01:41]}  Be7 {[%clk 0:02:16]} 15. a5 {[%clk 0:01:41]}  Rc8 {[%clk 0:02:14]} 16. Bxa7 {[%clk 0:01:39]}  Ba6 {[%clk 0:02:11]} 17. Be3 {[%clk 0:01:32]}  Bf6 {[%clk 0:02:08]} 18. f3 {[%clk 0:01:27]}  Nd6 {[%clk 0:02:06]} 19. Nbc5 {[%clk 0:01:19]}  Nxc5 {[%clk 0:02:03]} 20. Nxc5 {[%clk 0:01:19]}  Nc4 {[%clk 0:01:59]} 21. Bf2 {[%clk 0:01:12]}  Nxb2 {[%clk 0:01:51]} 22. Qd2 {[%clk 0:01:01]}  Nc4 {[%clk 0:01:47]} 23. Qb4 {[%clk 0:00:58]}  Bxa1 {[%clk 0:01:35]} 24. Rxa1 {[%clk 0:00:59]}  Qd6 {[%clk 0:01:35]} 25. Rd1 {[%clk 0:00:51]}  Rb8 {[%clk 0:01:34]} 26. Qc3 {[%clk 0:00:51]}  Rfc8 {[%clk 0:01:30]} 27. Ne4 {[%clk 0:00:44]}  Qa3 {[%clk 0:01:26]} 28. Qxa3 {[%clk 0:00:26]}  Nxa3 {[%clk 0:01:27]} 29. Nc5 {[%clk 0:00:26]}  Bxe2 {[%clk 0:01:17]} 30. Re1 {[%clk 0:00:27]}  Bc4 {[%clk 0:01:14]} 31. f4 {[%clk 0:00:21]}  Ra8 {[%clk 0:01:13]} 32. Nb7 {[%clk 0:00:17]}  Rc7 {[%clk 0:01:11]} 33. Nd6 {[%clk 0:00:14]}  Rc6 {[%clk 0:01:11]} 34. Nb7 {[%clk 0:00:11]}  Rc7 {[%clk 0:00:59]} 35. Nd6 {[%clk 0:00:10]}  Nb5 {[%clk 0:01:00]} 36. Bb6 {[%clk 0:00:09]}  Rc6 {[%clk 0:00:55]} 37. Nxc4 {[%clk 0:00:03]}  Rxc4 {[%clk 0:00:55]} 38. f5 {[%clk 0:00:04]}  Rc6 {[%clk 0:00:48]} 39. Bh3 {[%clk 0:00:02]}  Re8 {[%clk 0:00:38]} 40. Bf1 {[%clk 0:00:02]}  Nd6 {[%clk 0:00:35]} 41. fxe6 {[%clk 0:00:03]}  fxe6 {[%clk 0:00:35]} 42. Rd1 {[%clk 0:00:03]}  Nc4 {[%clk 0:00:35]} 43. Bxc4 {[%clk 0:00:02]}  Rxc4 {[%clk 0:00:35]} 44. Kg2 {[%clk 0:00:03]}  Kf7 {[%clk 0:00:34]} 45. Kh3 {[%clk 0:00:03]}  Ke7 {[%clk 0:00:34]} 46. Rf1 {[%clk 0:00:03]}  Kd7 {[%clk 0:00:33]} 47. Rf7+ {[%clk 0:00:04]}  Re7 {[%clk 0:00:34]} 48. Rf8 {[%clk 0:00:03]}  Kc6 {[%clk 0:00:31]} 49. Rb8 {[%clk 0:00:02]}  d4 {[%clk 0:00:31]} 50. Rd8 {[%clk 0:00:02]}  Rd7 {[%clk 0:00:30]} 51. Re8 {[%clk 0:00:01]}  d3 {[%clk 0:00:25]} 52. Rxe6+ {[%clk 0:00:01]}  Kd5 {[%clk 0:00:26]} 53. Re1 {[%clk 0:00:02]}  d2 {[%clk 0:00:26]} 54. Rd1 {[%clk 0:00:03]}  Kc6 {[%clk 0:00:26]} 55. Be3 {[%clk 0:00:03]}  Re4 {[%clk 0:00:21]} 56. Bxd2 {[%clk 0:00:02]}  Red4 {[%clk 0:00:21]} 57. Rc1+ {[%clk 0:00:03]}  Kb5 {[%clk 0:00:18]} 58. Bc3 {[%clk 0:00:03]}  Rd3 {[%clk 0:00:16]} 59. Rb1+ {[%clk 0:00:04]}  Ka6 {[%clk 0:00:16]} 60. Bb4 {[%clk 0:00:04]}  Rb7 {[%clk 0:00:15]} 61. Rb2 {[%clk 0:00:03]}  Rd4 {[%clk 0:00:15]} 62. Bc3 {[%clk 0:00:03]}  Rxb2 {[%clk 0:00:15]} 63. Bxb2 {[%clk 0:00:04]}  Rd7 {[%clk 0:00:15]} 64. Be5 {[%clk 0:00:04]}  Kxa5 {[%clk 0:00:15]} 65. Bf4 {[%clk 0:00:05]}  Kb5 {[%clk 0:00:15]} 66. Kg4 {[%clk 0:00:06]}  Kc4 {[%clk 0:00:15]} 67. h4 {[%clk 0:00:07]}  Kd5 {[%clk 0:00:16]} 68. Kf5 {[%clk 0:00:07]}  Rf7+ {[%clk 0:00:16]} 69. Kg5 {[%clk 0:00:08]}  Ke4 {[%clk 0:00:17]} 70. h5 {[%clk 0:00:08]}  Rf5+ {[%clk 0:00:13]} 71. Kg4 {[%clk 0:00:08]}  Rb5 {[%clk 0:00:13]} 72. Bg5 {[%clk 0:00:08]}  Kd5 {[%clk 0:00:06]} 73. Bf4 {[%clk 0:00:09]}  Ke6 {[%clk 0:00:06]} 74. Bg5 {[%clk 0:00:07]}  Rb1 {[%clk 0:00:02]} 75. Bf4 {[%clk 0:00:08]}  Rb5 {[%clk 0:00:02]} 76. h6 {[%clk 0:00:09]}  g6 {[%clk 0:00:02]} 77. Bg5 {[%clk 0:00:10]}  Kf7 {[%clk 0:00:02]} 78. Bf4 {[%clk 0:00:10]}  Rh5 {[%clk 0:00:02]} 79. Kf3 {[%clk 0:00:11]}  Ke6 {[%clk 0:00:03]} 80. Kg4 {[%clk 0:00:12]}  Kd5 {[%clk 0:00:03]} 81. Be3 {[%clk 0:00:12]}  Ke4 {[%clk 0:00:04]} 82. Bf4 {[%clk 0:00:13]}  Rh1 {[%clk 0:00:04]} 83. Bg5 {[%clk 0:00:14]}  Rf1 {[%clk 0:00:04]} 84. Bf4 {[%clk 0:00:14]}  Rh1 {[%clk 0:00:03]} 85. Kg5 {[%clk 0:00:15]}  Rh5+ {[%clk 0:00:02]} 86. Kf6 {[%clk 0:00:15]}  Rd5 {[%clk 0:00:02]} 87. Kg7 {[%clk 0:00:16]}  Rd7+ {[%clk 0:00:02]} 88. Kg8 {[%clk 0:00:16]}  Kf3 {[%clk 0:00:03]} 89. Kf8 {[%clk 0:00:16]}  Kg4 {[%clk 0:00:04]} 90. Kg8 {[%clk 0:00:16]}  Kh5 {[%clk 0:00:04]} 91. Kh8 {[%clk 0:00:15]}  g5 {[%clk 0:00:04]} 92. Kg8 {[%clk 0:00:15]}  gxf4 {[%clk 0:00:04]} 93. g4+ {[%clk 0:00:15]}  Kxh6 {[%clk 0:00:05]} 94. Kf8 {[%clk 0:00:13]}  Kg5 {[%clk 0:00:06]} 0-1


[Site "https://www.chess.com"]

[Event "Titled Tuesday Blitz August 1 Late 2023"]
[White "Todorovic, Bojan"]
[Black "Grinev, Valeriy"]
[WhiteFideId "917087"]
[BlackFideId "14117517"]
[WhiteElo "2429"]
[BlackElo "2540"]
[Result "1-0"]
[Round "5"]
[TimeControl "180+1"]
[Date "2023.08.01"]
[WhiteClock "0:01:08"]
[BlackClock "0:01:38"]
[Board "83"]

1. c4 {[%clk 0:03:00]}  e5 {[%clk 0:02:54]} 2. Nc3 {[%clk 0:03:00]}  Nc6 {[%clk 0:02:54]} 3. Nf3 {[%clk 0:03:01]}  f5 {[%clk 0:02:55]} 4. d4 {[%clk 0:03:00]}  e4 {[%clk 0:02:54]} 5. Ng5 {[%clk 0:03:00]}  h6 {[%clk 0:02:52]} 6. Nh3 {[%clk 0:02:55]}  g5 {[%clk 0:02:51]} 7. e3 {[%clk 0:02:42]}  d6 {[%clk 0:02:50]} 8. Qh5+ {[%clk 0:02:30]}  Kd7 {[%clk 0:02:46]} 9. Qf7+ {[%clk 0:02:27]}  Nge7 {[%clk 0:02:44]} 10. Nd5 {[%clk 0:02:21]}  Nb8 {[%clk 0:02:22]} 11. Nf6+ {[%clk 0:02:13]}  Kc6 {[%clk 0:02:22]} 12. d5+ {[%clk 0:02:12]}  Kb6 {[%clk 0:02:21]} 13. b4 {[%clk 0:02:10]}  a5 {[%clk 0:02:18]} 14. Bb2 {[%clk 0:02:03]}  axb4 {[%clk 0:02:15]} 15. Bd4+ {[%clk 0:02:00]}  Ka5 {[%clk 0:02:15]} 16. a3 {[%clk 0:01:55]}  b3 {[%clk 0:02:14]} 17. Rb1 {[%clk 0:01:42]}  b6 {[%clk 0:02:13]} 18. Rxb3 {[%clk 0:01:39]}  Nd7 {[%clk 0:02:11]} 19. Nxd7 {[%clk 0:01:33]}  Bxd7 {[%clk 0:02:11]} 20. Bxh8 {[%clk 0:01:31]}  f4 {[%clk 0:02:01]} 21. Bc3+ {[%clk 0:01:25]}  Ka4 {[%clk 0:01:59]} 22. Rb4+ {[%clk 0:01:21]}  Kxa3 {[%clk 0:01:59]} 23. Kd2 {[%clk 0:01:15]}  Nf5 {[%clk 0:01:51]} 24. Be2 {[%clk 0:01:10]}  fxe3+ {[%clk 0:01:50]} 25. fxe3 {[%clk 0:01:08]}  Nxe3 {[%clk 0:01:38]} 26. Ra1# {[%clk 0:01:08]} 1-0


[Site "https://www.chess.com"]

[Event "Titled Tuesday Blitz August 1 Late 2023"]
[White "Rodriguez Fontecha, Marcos"]
[Black "Mladek, Richard"]
[WhiteFideId "2256576"]
[BlackFideId "386588"]
[WhiteElo "2419"]
[BlackElo "2534"]
[Result "0-1"]
[Round "5"]
[TimeControl "180+1"]
[Date "2023.08.01"]
[WhiteClock "0:00:34"]
[BlackClock "0:01:41"]
[Board "86"]

1. e4 {[%clk 0:03:00]}  f5 {[%clk 0:02:58]} 2. exf5 {[%clk 0:03:00]}  Nf6 {[%clk 0:02:59]} 3. Nf3 {[%clk 0:02:56]}  d5 {[%clk 0:02:58]} 4. d4 {[%clk 0:02:54]}  c5 {[%clk 0:02:59]} 5. c3 {[%clk 0:02:53]}  Bxf5 {[%clk 0:02:50]} 6. Bd3 {[%clk 0:02:52]}  Be4 {[%clk 0:02:48]} 7. O-O {[%clk 0:02:49]}  Nc6 {[%clk 0:02:48]} 8. Ne5 {[%clk 0:02:40]}  e6 {[%clk 0:02:43]} 9. Nxc6 {[%clk 0:02:33]}  bxc6 {[%clk 0:02:42]} 10. Bxe4 {[%clk 0:02:34]}  dxe4 {[%clk 0:02:37]} 11. Qa4 {[%clk 0:02:21]}  Qb6 {[%clk 0:02:31]} 12. dxc5 {[%clk 0:02:14]}  Bxc5 {[%clk 0:02:31]} 13. b4 {[%clk 0:02:14]}  Bxf2+ {[%clk 0:02:26]} 14. Kh1 {[%clk 0:02:03]}  e3 {[%clk 0:02:08]} 15. Qc2 {[%clk 0:01:31]}  Qb5 {[%clk 0:02:08]} 16. c4 {[%clk 0:01:29]}  Qh5 {[%clk 0:02:02]} 17. Nc3 {[%clk 0:01:20]}  O-O {[%clk 0:01:53]} 18. Bb2 {[%clk 0:01:16]}  Ng4 {[%clk 0:01:48]} 19. h3 {[%clk 0:01:16]}  Rf3 {[%clk 0:01:47]} 20. Rxf2 {[%clk 0:00:34]}  exf2 {[%clk 0:01:41]} 0-1


[Site "https://www.chess.com"]

[Event "Titled Tuesday Blitz August 1 Late 2023"]
[White "Zhang, Derek"]
[Black "Kielinkei"]
[WhiteFideId "2087871"]
[WhiteElo "2529"]
[BlackElo "2414"]
[Result "0-1"]
[Round "5"]
[TimeControl "180+1"]
[Date "2023.08.01"]
[WhiteClock "0:00:01"]
[BlackClock "0:00:27"]
[Board "88"]

1. Nf3 {[%clk 0:03:00]}  d5 {[%clk 0:02:59]} 2. c4 {[%clk 0:03:01]}  d4 {[%clk 0:02:59]} 3. b4 {[%clk 0:03:00]}  g5 {[%clk 0:02:59]} 4. h3 {[%clk 0:02:58]}  h6 {[%clk 0:02:57]} 5. e3 {[%clk 0:02:55]}  dxe3 {[%clk 0:02:53]} 6. fxe3 {[%clk 0:02:54]}  Bg7 {[%clk 0:02:53]} 7. d4 {[%clk 0:02:54]}  Qd6 {[%clk 0:02:52]} 8. Qd2 {[%clk 0:02:42]}  a5 {[%clk 0:02:44]} 9. c5 {[%clk 0:02:41]}  Qg3+ {[%clk 0:02:42]} 10. Kd1 {[%clk 0:02:29]}  axb4 {[%clk 0:02:41]} 11. Qxb4 {[%clk 0:02:28]}  Nc6 {[%clk 0:02:39]} 12. Qe1 {[%clk 0:02:25]}  Qxe1+ {[%clk 0:02:36]} 13. Nxe1 {[%clk 0:02:14]}  Nxd4 {[%clk 0:02:21]} 14. Bb2 {[%clk 0:02:07]}  Nf5 {[%clk 0:02:17]} 15. Bxg7 {[%clk 0:02:06]}  Nxg7 {[%clk 0:02:18]} 16. Nc3 {[%clk 0:02:03]}  c6 {[%clk 0:02:11]} 17. Nf3 {[%clk 0:01:59]}  Nf5 {[%clk 0:02:09]} 18. Kd2 {[%clk 0:01:38]}  Ng3 {[%clk 0:02:07]} 19. Rg1 {[%clk 0:01:37]}  Nxf1+ {[%clk 0:02:08]} 20. Rgxf1 {[%clk 0:01:37]}  Nf6 {[%clk 0:02:08]} 21. Nd4 {[%clk 0:01:30]}  O-O {[%clk 0:02:02]} 22. Rab1 {[%clk 0:01:28]}  Nd5 {[%clk 0:01:54]} 23. Rb2 {[%clk 0:00:46]}  Rd8 {[%clk 0:01:53]} 24. e4 {[%clk 0:00:14]}  Nxc3 {[%clk 0:01:37]} 25. Kxc3 {[%clk 0:00:14]}  Ra4 {[%clk 0:01:38]} 26. Rd2 {[%clk 0:00:10]}  e5 {[%clk 0:01:27]} 27. Nb3 {[%clk 0:00:10]}  Rxd2 {[%clk 0:01:24]} 28. Nxd2 {[%clk 0:00:11]}  Ra3+ {[%clk 0:01:16]} 29. Nb3 {[%clk 0:00:11]}  Rxa2 {[%clk 0:01:15]} 30. Rd1 {[%clk 0:00:07]}  Be6 {[%clk 0:01:13]} 31. Rd8+ {[%clk 0:00:07]}  Kg7 {[%clk 0:01:14]} 32. Nd2 {[%clk 0:00:08]}  Ra3+ {[%clk 0:01:06]} 33. Kb2 {[%clk 0:00:08]}  Rg3 {[%clk 0:01:05]} 34. Rb8 {[%clk 0:00:07]}  Rxg2 {[%clk 0:01:05]} 35. Kc2 {[%clk 0:00:06]}  h5 {[%clk 0:00:52]} 36. Rxb7 {[%clk 0:00:06]}  g4 {[%clk 0:00:53]} 37. hxg4 {[%clk 0:00:05]}  h4 {[%clk 0:00:51]} 38. Rb1 {[%clk 0:00:02]}  h3 {[%clk 0:00:50]} 39. Rh1 {[%clk 0:00:03]}  h2 {[%clk 0:00:50]} 40. Kd3 {[%clk 0:00:03]}  Bxg4 {[%clk 0:00:48]} 41. Ke3 {[%clk 0:00:04]}  Re2+ {[%clk 0:00:46]} 42. Kd3 {[%clk 0:00:04]}  Kg6 {[%clk 0:00:33]} 43. Nf1 {[%clk 0:00:05]}  Re1 {[%clk 0:00:30]} 44. Kd2 {[%clk 0:00:04]}  Rxf1 {[%clk 0:00:29]} 45. Rxf1 {[%clk 0:00:03]}  Bf3 {[%clk 0:00:30]} 46. Rxf3 {[%clk 0:00:01]}  h1=Q {[%clk 0:00:29]} 47. Rg3+ {[%clk 0:00:02]}  Kf6 {[%clk 0:00:29]} 48. Ke3 {[%clk 0:00:03]}  Qc1+ {[%clk 0:00:28]} 49. Kf3 {[%clk 0:00:03]}  Qxc5 {[%clk 0:00:27]} 50. Kg4 {[%clk 0:00:03]}  Ke6 {[%clk 0:00:27]} 51. Rh3 {[%clk 0:00:03]}  Qd4 {[%clk 0:00:26]} 52. Rh6+ {[%clk 0:00:03]}  f6 {[%clk 0:00:27]} 53. Kf3 {[%clk 0:00:01]}  Qd3+ {[%clk 0:00:27]} 0-1


[Site "https://www.chess.com"]

[Event "Titled Tuesday Blitz August 1 Late 2023"]
[White "Sreyas Payyappat"]
[Black "Pesotskiy, Mikhail"]
[WhiteFideId "46674969"]
[BlackFideId "34164453"]
[WhiteElo "2518"]
[BlackElo "2401"]
[Result "0-1"]
[Round "5"]
[TimeControl "180+1"]
[Date "2023.08.01"]
[WhiteClock "0:00:51"]
[BlackClock "0:00:48"]
[Board "92"]

1. e4 {[%clk 0:03:00]}  e6 {[%clk 0:03:00]} 2. d4 {[%clk 0:03:00]}  d5 {[%clk 0:03:00]} 3. Nc3 {[%clk 0:03:01]}  Bb4 {[%clk 0:03:00]} 4. e5 {[%clk 0:03:01]}  c5 {[%clk 0:03:00]} 5. a3 {[%clk 0:03:01]}  Ba5 {[%clk 0:03:00]} 6. b4 {[%clk 0:03:00]}  cxd4 {[%clk 0:02:59]} 7. Nb5 {[%clk 0:02:59]}  Bc7 {[%clk 0:03:00]} 8. f4 {[%clk 0:02:57]}  Bd7 {[%clk 0:02:58]} 9. Nxd4 {[%clk 0:02:57]}  Ne7 {[%clk 0:02:53]} 10. Bd3 {[%clk 0:02:51]}  Nbc6 {[%clk 0:02:53]} 11. Ngf3 {[%clk 0:02:49]}  Nxd4 {[%clk 0:02:52]} 12. Nxd4 {[%clk 0:02:50]}  Bb6 {[%clk 0:02:53]} 13. Be3 {[%clk 0:02:49]}  Nc6 {[%clk 0:02:48]} 14. c3 {[%clk 0:02:41]}  O-O {[%clk 0:02:32]} 15. O-O {[%clk 0:02:38]}  Rc8 {[%clk 0:02:28]} 16. Rf3 {[%clk 0:02:36]}  Nxd4 {[%clk 0:02:26]} 17. cxd4 {[%clk 0:02:35]}  f5 {[%clk 0:02:04]} 18. Rh3 {[%clk 0:02:29]}  Rc3 {[%clk 0:01:59]} 19. g4 {[%clk 0:02:19]}  Ba4 {[%clk 0:01:21]} 20. Qd2 {[%clk 0:02:08]}  Qc7 {[%clk 0:01:20]} 21. Bf2 {[%clk 0:02:05]}  Bc2 {[%clk 0:01:17]} 22. Rc1 {[%clk 0:02:01]}  Rc8 {[%clk 0:01:13]} 23. Bxf5 {[%clk 0:01:50]}  exf5 {[%clk 0:01:04]} 24. Rxc3 {[%clk 0:01:26]}  Qxc3 {[%clk 0:01:05]} 25. Qxc3 {[%clk 0:01:26]}  Rxc3 {[%clk 0:01:05]} 26. gxf5 {[%clk 0:01:27]}  Rc7 {[%clk 0:00:52]} 27. f6 {[%clk 0:01:07]}  gxf6 {[%clk 0:00:52]} 28. exf6 {[%clk 0:01:01]}  Kf7 {[%clk 0:00:48]} 29. Re1 {[%clk 0:00:51]}  Be4 {[%clk 0:00:48]} 0-1


[Site "https://www.chess.com"]

[Event "Titled Tuesday Blitz August 1 Late 2023"]
[White "Shapiro, Daniel"]
[Black "Estrada Nieto, Julian"]
[WhiteFideId "2001780"]
[BlackFideId "5101018"]
[WhiteElo "2386"]
[BlackElo "2515"]
[Result "0-1"]
[Round "5"]
[TimeControl "180+1"]
[Date "2023.08.01"]
[WhiteClock "0:00:00"]
[BlackClock "0:00:23"]
[Board "94"]

1. d4 {[%clk 0:03:00]}  d5 {[%clk 0:02:58]} 2. c4 {[%clk 0:03:00]}  dxc4 {[%clk 0:02:57]} 3. e4 {[%clk 0:03:01]}  e5 {[%clk 0:02:55]} 4. Nf3 {[%clk 0:03:00]}  exd4 {[%clk 0:02:55]} 5. Bxc4 {[%clk 0:03:00]}  Nc6 {[%clk 0:02:56]} 6. O-O {[%clk 0:02:54]}  Be6 {[%clk 0:02:55]} 7. Bxe6 {[%clk 0:02:54]}  fxe6 {[%clk 0:02:55]} 8. Qb3 {[%clk 0:02:55]}  Qd7 {[%clk 0:02:55]} 9. Qxb7 {[%clk 0:02:36]}  Rb8 {[%clk 0:02:54]} 10. Qa6 {[%clk 0:02:35]}  Nf6 {[%clk 0:02:55]} 11. Nbd2 {[%clk 0:02:01]}  Bd6 {[%clk 0:02:54]} 12. a3 {[%clk 0:01:55]}  O-O {[%clk 0:02:53]} 13. Re1 {[%clk 0:01:50]}  Ng4 {[%clk 0:02:52]} 14. Qa4 {[%clk 0:01:23]}  Bf4 {[%clk 0:02:37]} 15. Nf1 {[%clk 0:01:05]}  Qd6 {[%clk 0:02:09]} 16. Ng3 {[%clk 0:00:56]}  Nce5 {[%clk 0:01:50]} 17. Nxd4 {[%clk 0:00:18]}  Nd3 {[%clk 0:01:24]} 18. Rd1 {[%clk 0:00:12]}  Ngxf2 {[%clk 0:01:08]} 19. Bxf4 {[%clk 0:00:08]}  Rxf4 {[%clk 0:01:06]} 20. Rd2 {[%clk 0:00:07]}  Qb6 {[%clk 0:00:50]} 21. Rf1 {[%clk 0:00:04]}  Rbf8 {[%clk 0:00:45]} 22. h3 {[%clk 0:00:02]}  h6 {[%clk 0:00:32]} 23. Qc4 {[%clk 0:00:00]}  Nc5 {[%clk 0:00:23]} 0-1


[Site "https://www.chess.com"]

[Event "Titled Tuesday Blitz August 1 Late 2023"]
[White "Kanakaris, Georgios"]
[Black "Kujawski, Adam"]
[WhiteFideId "4209460"]
[BlackFideId "1100920"]
[WhiteElo "2513"]
[BlackElo "2358"]
[Result "1-0"]
[Round "5"]
[TimeControl "180+1"]
[Date "2023.08.01"]
[WhiteClock "0:00:20"]
[BlackClock "0:00:00"]
[Board "96"]

1. d4 {[%clk 0:02:59]}  Nf6 {[%clk 0:03:00]} 2. c4 {[%clk 0:02:57]}  e6 {[%clk 0:02:59]} 3. Nc3 {[%clk 0:02:57]}  Bb4 {[%clk 0:02:59]} 4. e3 {[%clk 0:02:57]}  c5 {[%clk 0:02:58]} 5. Bd3 {[%clk 0:02:57]}  d6 {[%clk 0:02:56]} 6. Nf3 {[%clk 0:02:56]}  Bxc3+ {[%clk 0:02:51]} 7. bxc3 {[%clk 0:02:54]}  Nc6 {[%clk 0:02:51]} 8. O-O {[%clk 0:02:50]}  e5 {[%clk 0:02:50]} 9. d5 {[%clk 0:02:45]}  Ne7 {[%clk 0:02:50]} 10. e4 {[%clk 0:02:45]}  Ng6 {[%clk 0:02:36]} 11. Rb1 {[%clk 0:02:44]}  O-O {[%clk 0:02:32]} 12. Ne1 {[%clk 0:02:40]}  h6 {[%clk 0:02:31]} 13. g3 {[%clk 0:02:37]}  b6 {[%clk 0:02:29]} 14. Ng2 {[%clk 0:02:37]}  Re8 {[%clk 0:02:23]} 15. f3 {[%clk 0:02:35]}  h5 {[%clk 0:02:08]} 16. Ne3 {[%clk 0:02:33]}  Bh3 {[%clk 0:02:01]} 17. Rf2 {[%clk 0:02:32]}  Qd7 {[%clk 0:02:00]} 18. Bc2 {[%clk 0:02:29]}  Rf8 {[%clk 0:01:52]} 19. Nf5 {[%clk 0:02:15]}  Ne7 {[%clk 0:01:35]} 20. Ba4 {[%clk 0:02:02]}  Qd8 {[%clk 0:01:34]} 21. Nh4 {[%clk 0:01:52]}  Ng6 {[%clk 0:01:16]} 22. Nf5 {[%clk 0:01:39]}  Ne7 {[%clk 0:01:14]} 23. Qd3 {[%clk 0:00:52]}  Nxf5 {[%clk 0:00:58]} 24. exf5 {[%clk 0:00:53]}  e4 {[%clk 0:00:58]} 25. fxe4 {[%clk 0:00:53]}  Ng4 {[%clk 0:00:58]} 26. Rf4 {[%clk 0:00:48]}  Ne5 {[%clk 0:00:57]} 27. Qe2 {[%clk 0:00:47]}  Bg4 {[%clk 0:00:50]} 28. Qf1 {[%clk 0:00:47]}  g5 {[%clk 0:00:46]} 29. Rf2 {[%clk 0:00:40]}  h4 {[%clk 0:00:44]} 30. gxh4 {[%clk 0:00:33]}  gxh4 {[%clk 0:00:44]} 31. Rg2 {[%clk 0:00:33]}  Kh7 {[%clk 0:00:42]} 32. Qf4 {[%clk 0:00:32]}  Qf6 {[%clk 0:00:37]} 33. h3 {[%clk 0:00:20]}  Bxh3 {[%clk 0:00:04]} 34. Rh2 {[%clk 0:00:20]}  Rg8+ {[%clk 0:00:04]} 35. Kh1 {[%clk 0:00:21]}  Qg7 {[%clk 0:00:00]} 36. Qxh4+ {[%clk 0:00:20]} 1-0


[Site "https://www.chess.com"]

[Event "Titled Tuesday Blitz August 1 Late 2023"]
[White "FromTexas54"]
[Black "Garcia-Castany Musellas, Gal.la"]
[BlackFideId "2241803"]
[WhiteElo "2507"]
[BlackElo "2341"]
[Result "1-0"]
[Round "5"]
[TimeControl "180+1"]
[Date "2023.08.01"]
[WhiteClock "0:01:43"]
[BlackClock "0:00:01"]
[Board "99"]

1. e4 {[%clk 0:03:00]}  c6 {[%clk 0:02:59]} 2. c4 {[%clk 0:02:59]}  d5 {[%clk 0:02:58]} 3. cxd5 {[%clk 0:03:00]}  cxd5 {[%clk 0:02:59]} 4. exd5 {[%clk 0:03:00]}  Nf6 {[%clk 0:02:59]} 5. Nc3 {[%clk 0:03:00]}  Nxd5 {[%clk 0:02:52]} 6. Bc4 {[%clk 0:03:00]}  e6 {[%clk 0:02:46]} 7. Nf3 {[%clk 0:03:00]}  Be7 {[%clk 0:02:40]} 8. O-O {[%clk 0:02:59]}  O-O {[%clk 0:02:33]} 9. d4 {[%clk 0:02:59]}  Nc6 {[%clk 0:02:32]} 10. Re1 {[%clk 0:02:56]}  b6 {[%clk 0:02:16]} 11. h3 {[%clk 0:02:52]}  Nxc3 {[%clk 0:02:11]} 12. bxc3 {[%clk 0:02:51]}  Bb7 {[%clk 0:02:09]} 13. Bd3 {[%clk 0:02:50]}  Bf6 {[%clk 0:02:02]} 14. Bf4 {[%clk 0:02:50]}  Rc8 {[%clk 0:02:01]} 15. Rc1 {[%clk 0:02:49]}  Na5 {[%clk 0:01:58]} 16. Ne5 {[%clk 0:02:48]}  Bd5 {[%clk 0:01:37]} 17. Re3 {[%clk 0:02:39]}  Nc4 {[%clk 0:01:26]} 18. Rg3 {[%clk 0:02:37]}  Nxe5 {[%clk 0:00:46]} 19. dxe5 {[%clk 0:02:34]}  Bh4 {[%clk 0:00:45]} 20. Qh5 {[%clk 0:02:33]}  g6 {[%clk 0:00:33]} 21. Rg4 {[%clk 0:02:32]}  Be7 {[%clk 0:00:16]} 22. Qh6 {[%clk 0:02:16]}  Re8 {[%clk 0:00:14]} 23. h4 {[%clk 0:02:13]}  Bf8 {[%clk 0:00:14]} 24. Qg5 {[%clk 0:02:12]}  Qxg5 {[%clk 0:00:14]} 25. Bxg5 {[%clk 0:02:13]}  Bc6 {[%clk 0:00:12]} 26. h5 {[%clk 0:02:09]}  Bg7 {[%clk 0:00:12]} 27. Bf6 {[%clk 0:02:04]}  Bxf6 {[%clk 0:00:11]} 28. exf6 {[%clk 0:02:04]}  Red8 {[%clk 0:00:12]} 29. hxg6 {[%clk 0:02:00]}  hxg6 {[%clk 0:00:13]} 30. Ba6 {[%clk 0:01:55]}  Rc7 {[%clk 0:00:12]} 31. Rc4 {[%clk 0:01:53]}  Rdd7 {[%clk 0:00:12]} 32. Rd4 {[%clk 0:01:45]}  Rxd4 {[%clk 0:00:11]} 33. cxd4 {[%clk 0:01:45]}  Kf8 {[%clk 0:00:09]} 34. Bb5 {[%clk 0:01:45]}  Rd7 {[%clk 0:00:01]} 35. Rxc6 {[%clk 0:01:43]} 1-0


[Site "https://www.chess.com"]